bitfinex-derivatives/quotes_SOLF0:USTF0_20250527
["timestamp","ask_amount","ask_price","bid_price","bid_amount"]
[1748358169275,31.9,177.15,177.03,31.9]
[1748358169478,0.04194166,177.11,177.07,0.03680379]
[1748358170374,0.04194166,177.11,177.1,5.6442]
[1748358170579,0.04194166,177.11,177.07,0.03680379]
[1748358170981,5.68614166,177.11,177.07,0.03680379]
[1748358171484,0.04194166,177.11,177.07,0.03680379]
[1748358172476,5.68614166,177.11,177.08,5.6448]
[1748358172676,0.04194166,177.11,177.07,0.03680379]
[1748358173073,5.68604166,177.11,177.08,5.6448]
[1748358173277,0.04194166,177.11,177.07,0.03680379]
[1748358173679,5.6451,177.08,177.07,0.03680379]
[1748358176194,35.8759,177.1,177.07,0.03680379]
[1748358176694,5.6451,177.08,177.07,0.03680379]
[1748358181385,5.6465,177.04,177.01,31.8]
[1748358181584,35.8759,177.1,176.98,2.0162]
[1748358181789,35.8759,177.1,176.97,521.3647]
[1748358182291,0.04294521,177.05,177.02,0.037032]
[1748358183087,5.6466,177.03,177.02,0.037032]
[1748358183691,31.84294521,177.05,176.94,1.9463]
[1748358183886,16.28986361,177.03,176.92,33.7842]
[1748358184087,16.28986361,177.03,176.97,5.6485]
[1748358184297,5.6477,177.0,176.92,33.7842]
[1748358184590,16.28986361,177.03,176.92,33.7842]
[1748358184795,0.03979242,176.99,176.98,5.6482]
[1748358186690,0.03979242,176.99,176.97,5.6484]
[1748358187083,0.03979242,176.99,176.92,33.7842]
[1748358188498,5.68789242,176.99,176.92,33.7842]
[1748358188801,0.03979242,176.99,176.92,31.8]
[1748358188997,5.6485,176.98,176.95,5.6492]
[1748358189304,0.03979242,176.99,176.92,31.8]
[1748358189491,0.03979242,176.99,176.9,1.9154]
[1748358190088,5.6484,176.98,176.9,1.9154]
[1748358190596,5.68779242,176.99,176.96,5.6487]
[1748358190898,0.03979242,176.99,176.9,1.9154]
[1748358193095,5.6483,176.98,176.9,1.9154]
[1748358193496,0.03979242,176.99,176.9,1.9154]
[1748358193694,0.03979242,176.99,176.9,18.20526361]
[1748358193996,9.242e-05,176.99,176.98,5.6482]
[1748358194296,10.01324937,177.07,176.96,31.82]
[1748358194498,37.4652,177.08,176.97,1.9099]
[1748358194698,31.82,177.08,176.97,1.9099]
[1748358195096,0.03761119,177.04,177.01,0.04037762]
[1748358196500,5.647,177.02,177.01,0.04037762]
[1748358198312,31.82,177.03,176.93,1.9099]
[1748358199004,5.6485,176.98,176.93,7.5595]
[1748358199404,0.03712088,176.97,176.93,7.5595]
[1748358200107,5.68592088,176.97,176.93,7.5595]
[1748358200316,0.03712088,176.97,176.93,1.9099]
[1748358200913,31.7,176.96,176.89,1.9918]
[1748358201801,31.7,176.96,176.88,5.6513]
[1748358202413,31.7,176.96,176.84,3.9152]
[1748358202707,0.04146486,176.92,176.86,5.6518]
[1748358202914,5.6506,176.91,176.84,3.9152]
[1748358203411,0.04146486,176.92,176.84,3.9152]
[1748358203601,5.6509,176.9,176.84,1.9479]
[1748358203800,0.04146486,176.92,176.85,5.6521]
[1748358204200,0.04146486,176.92,176.84,1.9479]
[1748358205011,0.04146486,176.92,176.91,5.6503]
[1748358206007,31.7,176.96,176.95,5.649]
[1748358206209,31.72,177.0,176.95,5.649]
[1748358206807,31.72,177.0,176.89,1.9889]
[1748358207112,0.03955375,176.96,176.93,0.04014951]
[1748358207409,5.6472,177.01,176.98,5.648]
[1748358207614,5.6472,177.01,176.98,5.69096454]
[1748358207615,5.68637064,177.01,176.98,5.69096454]
[1748358208115,0.03917064,177.01,176.99,5.6477]
[1748358208315,0.03917064,177.01,176.98,0.04296454]
[1748358210211,5.6478,176.99,176.98,0.04296454]
[1748358210412,37.3678,176.99,176.98,0.04296454]
[1748358211501,31.75917064,177.01,176.98,0.04296454]
[1748358212405,5.6478,176.99,176.98,0.04296454]
[1748358213206,5.6495,176.94,176.89,33.7089]
[1748358213508,48.03787546,177.01,176.91,5.6502]
[1748358213910,5.6495,176.94,176.91,5.6502]
[1748358214306,0.04076407,176.94,176.89,33.7089]
[1748358214721,0.04076407,176.94,176.89,7.6399]
[1748358215012,0.04076407,176.94,176.89,1.9889]
[1748358215616,0.04076407,176.94,176.87,1.8966]
[1748358216017,0.04076407,176.94,176.88,2.0368]
[1748358217424,5.69026407,176.94,176.88,2.0368]
[1748358217614,0.04076407,176.94,176.88,2.0368]
[1748358218515,5.69036407,176.94,176.88,2.0368]
[1748358219222,5.69036407,176.94,176.91,5.6503]
[1748358219418,5.69036407,176.94,176.88,2.0368]
[1748358219419,0.04076407,176.94,176.88,2.0368]
[1748358220416,0.04076407,176.94,176.93,5.6497]
[1748358220618,31.72,177.0,176.92,0.04290034]
[1748358221014,31.72,177.0,176.92,5.69290034]
[1748358221522,0.03697704,176.98,176.92,5.69290034]
[1748358221925,5.6492,176.95,176.92,0.04290034]
[1748358222131,0.03697704,176.98,176.92,0.04290034]
[1748358222421,5.6497,176.93,176.92,0.04290034]
[1748358224222,0.03874636,176.94,176.85,31.72]
[1748358224623,5.6499,176.93,176.85,31.72]
[1748358224820,0.03874636,176.94,176.85,31.72]
[1748358225126,5.68834636,176.94,176.89,5.6508]
[1748358225319,0.03874636,176.94,176.85,31.72]
[1748358225520,0.03874636,176.94,176.89,5.6509]
[1748358225722,0.03874636,176.94,176.85,31.72]
[1748358226226,0.03874636,176.94,176.9,5.6506]
[1748358226524,5.68814636,176.94,176.86,1.9388]
[1748358226723,5.68814636,176.94,176.89,5.6509]
[1748358227024,0.03874636,176.94,176.86,1.9388]
[1748358228525,0.03874636,176.94,176.88,5.6511]
[1748358228718,0.03874636,176.94,176.86,1.9388]
[1748358228719,5.6504,176.91,176.86,1.9388]
[1748358228919,0.03769647,176.9,176.86,1.9388]
[1748358229114,0.03769647,176.9,176.87,5.6516]
[1748358229522,0.03769647,176.9,176.86,1.9388]
[1748358229523,5.68839647,176.9,176.86,1.9388]
[1748358229728,0.03769647,176.9,176.86,1.9388]
[1748358230426,0.03769647,176.9,176.86,7.5905]
[1748358231022,0.03769647,176.9,176.86,1.9388]
[1748358231425,5.68859647,176.9,176.86,7.5907]
[1748358231621,0.03769647,176.9,176.86,1.9388]
[1748358232021,5.6511,176.89,176.86,1.9388]
[1748358232221,0.03769647,176.9,176.86,1.9388]
[1748358233020,5.6512,176.89,176.86,1.9388]
[1748358233421,0.03769647,176.9,176.86,1.9388]
[1748358233624,5.6511,176.89,176.86,1.9388]
[1748358234328,5.68839647,176.9,176.86,1.9388]
[1748358234530,0.03769647,176.9,176.86,1.9388]
[1748358236130,5.6512,176.89,176.86,1.9388]
[1748358236429,0.03769647,176.9,176.86,1.9388]
[1748358236624,5.6515,176.88,176.86,1.9388]
[1748358237221,5.6515,176.88,176.85,31.72]
[1748358237831,5.6517,176.87,176.85,31.72]
[1748358238323,5.6515,176.88,176.85,31.72]
[1748358238723,0.03769647,176.9,176.85,31.72]
[1748358238923,5.6512,176.89,176.85,37.3722]
[1748358239431,0.03769647,176.9,176.89,5.651]
[1748358242131,0.03769647,176.9,176.85,34.46010668]
[1748358242132,31.62,176.97,176.93,5.6497]
[1748358242431,31.62,177.02,176.93,5.6497]
[1748358242830,31.62,177.02,176.94,5.6494]
[1748358243129,5.648,176.99,176.96,0.04300429]
[1748358243327,0.03609757,177.0,176.96,0.04300429]
[1748358244327,0.03609757,177.0,176.96,5.69150429]
[1748358244534,0.03609757,177.0,176.96,0.04300429]
[1748358244737,5.6482,176.98,176.96,0.04300429]
[1748358245037,0.03609757,177.0,176.96,0.04300429]
[1748358246245,5.648,176.99,176.96,0.04300429]
[1748358246538,5.68359757,177.0,176.96,5.69170429]
[1748358246737,5.68359757,177.0,176.96,0.04300429]
[1748358248138,5.6478,176.99,176.96,0.04300429]
[1748358248329,0.03609757,177.0,176.96,0.04300429]
[1748358248731,5.6484,176.97,176.96,0.04300429]
[1748358254337,16.31787546,176.98,176.87,31.62]
[1748358254538,1.8919,176.97,176.87,31.62]
[1748358254746,31.62,176.96,176.87,31.62]
[1748358254944,5.6499,176.93,176.87,31.62]
[1748358255338,0.04131458,176.92,176.89,5.6508]
[1748358255542,0.04131458,176.92,176.87,31.62]
[1748358258246,0.04131458,176.92,176.9,5.6504]
[1748358258942,0.04131458,176.92,176.91,5.6503]
[1748358260453,0.04131458,176.92,176.9,5.6506]
[1748358261360,0.04131458,176.92,176.91,5.6503]
[1748358264455,0.04131458,176.92,176.87,31.62]
[1748358264949,0.04131458,176.92,176.9,5.6504]
[1748358265343,0.04131458,176.92,176.87,31.62]
[1748358265547,0.04131458,176.92,176.91,5.6503]
[1748358265946,0.04131458,176.92,176.85,2.74002718]
[1748358266147,31.52,176.91,176.81,2.74002718]
[1748358266455,10.02398313,176.87,176.81,2.74002718]
[1748358267047,10.02398313,176.87,176.76,5.8704]
[1748358267048,0.03588317,176.88,176.79,2.74002718]
[1748358267249,5.6529,176.83,176.79,8.39412718]
[1748358267448,0.03576001,176.85,176.79,2.74002718]
[1748358267847,5.6538,176.8,176.79,2.74002718]
[1748358268046,5.6538,176.8,176.78,31.52]
[1748358268047,0.03723002,176.81,176.78,31.52]
[1748358268252,0.03691946,176.81,176.78,31.52]
[1748358268555,0.03691946,176.81,176.74,31.52]
[1748358270547,5.6559,176.74,176.7,5.657]
[1748358270846,5.69878583,176.74,176.7,5.657]
[1748358271052,0.04288583,176.74,176.71,5.6566]
[1748358271254,0.04288583,176.74,176.69,31.54]
[1748358272850,5.69888583,176.74,176.7,5.657]
[1748358273057,0.04288583,176.74,176.69,31.54]
[1748358273250,0.04288583,176.74,176.67,2.0256]
[1748358273652,0.04288583,176.74,176.66,1.9327]
[1748358274648,31.58288583,176.74,176.65,31.54]
[1748358275251,5.6572,176.7,176.65,37.1984]
[1748358275455,0.03927023,176.69,176.65,37.1984]
[1748358275751,0.03927023,176.69,176.65,31.54]
[1748358275956,0.03927023,176.69,176.62,1.9976]
[1748358276352,0.03927023,176.69,176.61,31.54]
[1748358278347,0.03927023,176.69,176.68,5.6577]
[1748358278551,0.03927023,176.69,176.61,31.54]
[1748358278957,0.03927023,176.69,176.68,5.6577]
[1748358279658,7.023e-05,176.69,176.68,5.6577]
[1748358280458,7.023e-05,176.69,176.68,7.6557]
[1748358280857,3.8928,176.81,176.68,7.658]
[1748358281054,31.56,176.83,176.68,1.998]
[1748358281254,37.2129,176.83,176.69,16.35981394]
[1748358281555,31.56,176.83,176.7,62.0]
[1748358281756,31.56,176.87,176.71,31.56]
[1748358281955,0.04193117,176.81,176.77,0.03726927]
[1748358283361,0.04193117,176.81,176.78,5.6542]
[1748358284261,0.04193117,176.81,176.77,0.03726927]
[1748358284462,0.04193117,176.81,176.77,3.94196927]
[1748358284661,0.04193117,176.81,176.77,5.83206927]
[1748358284958,0.04193117,176.81,176.8,5.6538]
[1748358285555,5.7172,176.89,176.77,5.83206927]
[1748358285757,31.56,176.91,176.78,16.35981394]
[1748358286160,5.6513,176.88,176.78,16.35981394]
[1748358286569,0.04349995,176.85,176.81,0.04348374]
[1748358286766,0.04349995,176.85,176.81,5.69668374]
[1748358286964,0.04349995,176.85,176.81,0.04348374]
[1748358287159,5.6528,176.84,176.81,0.04348374]
[1748358287365,0.04349995,176.85,176.81,0.04348374]
[1748358287667,0.04349995,176.85,176.82,5.6531]
[1748358287965,0.04349995,176.85,176.81,31.58348374]
[1748358288360,0.04349995,176.85,176.82,5.6531]
[1748358288871,0.04349995,176.85,176.83,5.6528]
[1748358289169,0.04349995,176.85,176.81,31.58348374]
[1748358290164,0.04349995,176.85,176.83,5.6526]
[1748358290856,0.04349995,176.85,176.84,5.6525]
[1748358292070,31.74,176.96,176.88,5.651]
[1748358292466,31.74,176.96,176.87,31.74]
[1748358292662,31.74,176.96,176.88,5.6512]
[1748358293059,5.6499,176.93,176.9,0.04313527]
[1748358293471,0.04322933,176.94,176.9,5.69373527]
[1748358293666,0.04322933,176.94,176.9,0.04313527]
[1748358294570,0.04322933,176.94,176.9,5.69353527]
[1748358294870,0.04322933,176.94,176.9,0.04313527]
[1748358296869,0.04322933,176.94,176.93,5.6497]
[1748358297065,0.04322933,176.94,176.93,37.3697]
[1748358297774,2.0124,177.05,176.93,31.72]
[1748358298164,5.647,177.02,176.98,5.648]
[1748358298674,5.68378058,177.02,176.98,5.6837239]
[1748358298975,0.03678058,177.02,176.98,0.0357239]
[1748358299568,5.6478,176.99,176.98,0.0357239]
[1748358299969,0.03678058,177.02,176.98,0.0357239]
[1748358300168,0.03678058,177.02,176.98,31.7557239]
[1748358300668,0.03678058,177.02,177.01,5.6471]
[1748358301171,0.03678058,177.02,176.99,1.9011]
[1748358301873,5.6474,177.0,176.99,1.9011]
[1748358302062,0.03678058,177.02,176.98,0.0357239]
[1748358302275,5.6478,176.99,176.98,0.0357239]
[1748358302873,5.6475,177.0,176.98,0.0357239]
[1748358303465,5.6478,176.99,176.98,0.0357239]
[1748358304479,5.6475,177.0,176.98,0.0357239]
[1748358304780,0.03678058,177.02,176.98,0.0357239]
[1748358305073,5.6478,176.99,176.98,0.0357239]
[1748358306980,5.6475,177.0,176.98,0.0357239]
[1748358307678,31.7,177.01,176.98,0.0357239]
[1748358308276,5.6474,177.0,176.98,0.0357239]
[1748358308873,5.6478,176.99,176.98,0.0357239]
[1748358309578,31.7,177.01,176.98,0.0357239]
[1748358310777,5.6478,176.99,176.98,0.0357239]
[1748358311284,5.6489,176.96,176.92,5.6498]
[1748358311586,31.7,177.01,176.9,31.7]
[1748358311884,31.7,177.01,176.9,37.3506]
[1748358312276,0.0392939,176.97,176.94,0.04115435]
[1748358312585,31.7,176.96,176.86,31.7]
[1748358312988,33.598,176.96,176.86,31.7]
[1748358313284,33.598,176.96,176.83,1.8656]
[1748358313285,49.95781394,176.96,176.83,1.8656]
[1748358313687,5.6917809,176.91,176.88,5.68690061]
[1748358313888,0.0412809,176.91,176.88,0.03570061]
[1748358314397,0.0412809,176.91,176.9,5.6506]
[1748358316895,0.0412809,176.91,176.89,5.6509]
[1748358317190,0.0412809,176.91,176.88,0.03570061]
[1748358318287,5.6916809,176.91,176.88,0.03570061]
[1748358318482,0.0412809,176.91,176.88,0.03570061]
[1748358318990,5.651,176.89,176.88,0.03570061]
[1748358322504,33.7078,176.9,176.7,27.67371394]
[1748358322692,33.7078,176.9,176.71,35.5369]
[1748358322994,16.35981394,176.87,176.75,5.6554]
[1748358323187,1.9713,176.86,176.71,37.469]
[1748358323392,0.03746373,176.8,176.77,0.0383369]
[1748358323900,5.6545,176.79,176.77,0.0383369]
[1748358324298,0.03746373,176.8,176.77,0.0383369]
[1748358324299,5.6545,176.78,176.77,0.0383369]
[1748358325198,5.6556,176.75,176.71,31.52]
[1748358325698,5.6556,176.75,176.71,5.6565]
[1748358325898,5.6561,176.73,176.67,31.52]
[1748358326096,16.35981394,176.79,176.67,31.52]
[1748358326300,0.03860016,176.75,176.71,0.02705559]
[1748358326894,5.6561,176.73,176.71,0.02705559]
[1748358327401,0.03860016,176.75,176.71,0.02705559]
[1748358327597,5.69410016,176.75,176.71,0.02705559]
[1748358328700,5.6558,176.74,176.71,0.02705559]
[1748358329294,5.6561,176.73,176.71,0.02705559]
[1748358329499,0.03860016,176.75,176.71,0.02705559]
[1748358330895,0.03860016,176.75,176.72,5.6563]
[1748358331091,0.03860016,176.75,176.71,0.02705559]
[1748358332406,5.6558,176.74,176.71,0.02705559]
[1748358332908,0.03860016,176.75,176.71,0.02705559]
[1748358333301,5.6564,176.72,176.71,0.02705559]
[1748358333503,0.03860016,176.75,176.71,0.02705559]
[1748358333906,5.656,176.74,176.71,0.02705559]
[1748358334309,0.03860016,176.75,176.71,0.02705559]
[1748358334606,0.03860016,176.75,176.63,31.54]
[1748358334808,16.35981394,176.76,176.63,31.54]
[1748358335609,0.03738151,176.71,176.6,488.28]
[1748358335810,0.03832863,176.67,176.6,488.28]
[1748358336009,0.03832863,176.67,176.66,5.6583]
[1748358337109,2.863e-05,176.67,176.66,5.6583]
[1748358337313,33.4249,176.78,176.72,5.6562]
[1748358337604,5.6555,176.75,176.72,5.6562]
[1748358338111,33.4249,176.78,176.67,1.9154]
[1748358338112,5.656,176.74,176.67,1.9154]
[1748358338311,0.03988015,176.73,176.69,0.03832863]
[1748358338706,5.69618015,176.73,176.69,0.03832863]
[1748358338905,0.03988015,176.73,176.69,0.03832863]
[1748358339811,31.59988015,176.73,176.69,0.03832863]
[1748358340117,5.657,176.7,176.69,0.03832863]
[1748358341709,5.6583,176.66,176.61,1.9737]
[1748358342101,5.6583,176.66,176.6,519.84]
[1748358342102,3.9235,176.72,176.62,5.6595]
[1748358342305,5.6585,176.66,176.6,519.84]
[1748358342817,0.04203475,176.65,176.62,5.6593]
[1748358343006,0.04203475,176.65,176.6,519.84]
[1748358343305,0.04203475,176.65,176.64,5.6589]
[1748358343512,0.04203475,176.65,176.6,519.84]
[1748358344112,0.04203475,176.65,176.63,5.659]
[1748358344416,0.04203475,176.65,176.6,519.84]
[1748358344617,31.56,176.73,176.6,519.84]
[1748358344911,31.56,176.73,176.6,536.19981394]
[1748358345118,2.0234,176.76,176.71,5.6565]
[1748358345313,31.56,176.77,176.67,31.56]
[1748358345611,0.03912137,176.74,176.7,0.03659734]
[1748358346017,0.03912137,176.74,176.73,5.6561]
[1748358347920,31.56,176.81,176.78,5.6544]
[1748358348810,31.59884023,176.81,176.79,5.6541]
[1748358349117,0.03884023,176.81,176.78,0.03990616]
[1748358349313,0.03884023,176.81,176.8,5.6538]
[1748358349616,0.03884023,176.81,176.78,0.03990616]
[1748358350611,0.03884023,176.81,176.8,5.6538]
[1748358351325,0.03884023,176.81,176.78,0.03990616]
[1748358351813,0.03884023,176.81,176.8,5.6538]
[1748358352014,31.68,176.89,176.78,0.03990616]
[1748358352219,31.68,176.89,176.8,5.6536]
[1748358352615,31.68,176.89,176.79,31.68]
[1748358352916,31.68,176.89,176.78,5.6544]
[1748358353121,0.03779612,176.85,176.82,0.03881384]
[1748358354623,0.03779612,176.85,176.82,5.69191384]
[1748358355222,0.03779612,176.85,176.82,0.03881384]
[1748358355621,0.03779612,176.85,176.82,31.69881384]
[1748358356018,0.03779612,176.85,176.84,5.6525]
[1748358356515,488.62,177.02,176.84,5.66]
[1748358356715,520.28,177.02,176.85,115.4]
[1748358356922,5.6487,176.97,176.91,5.6501]
[1748358357220,520.28,177.02,176.9,31.66]
[1748358357520,0.03621027,176.98,176.94,0.04184259]
[1748358358321,5.6484,176.97,176.94,0.04184259]
[1748358358522,0.03621027,176.98,176.94,0.04184259]
[1748358358913,0.03621027,176.98,176.95,5.649]
[1748358359121,0.03621027,176.98,176.94,0.04184259]
[1748358359326,0.03621027,176.98,176.95,5.6488]
[1748358359519,0.03621027,176.98,176.94,0.04184259]
[1748358359922,5.6484,176.97,176.94,0.04184259]
[1748358360224,0.03621027,176.98,176.94,0.04184259]
[1748358361026,5.649,176.95,176.94,0.04184259]
[1748358362226,31.66,176.96,176.86,1.8513]
[1748358363026,5.6502,176.92,176.86,1.8513]
[1748358363227,0.03669136,176.91,176.87,0.03767061]
[1748358363527,0.03669136,176.91,176.87,5.68897061]
[1748358363727,0.03669136,176.91,176.87,0.03767061]
[1748358365031,5.68719136,176.91,176.87,0.03767061]
[1748358365923,0.03669136,176.91,176.87,5.68897061]
[1748358366124,0.03669136,176.91,176.87,0.03767061]
[1748358367023,0.03669136,176.91,176.89,5.6507]
[1748358367529,0.03669136,176.91,176.88,5.6512]
[1748358367731,0.03669136,176.91,176.87,0.03767061]
[1748358369033,5.6507,176.9,176.87,0.03767061]
[1748358369330,0.03669136,176.91,176.87,0.03767061]
[1748358370333,5.68709136,176.91,176.87,0.03767061]
[1748358370534,0.03669136,176.91,176.87,0.03767061]
[1748358370927,5.6508,176.9,176.87,0.03767061]
[1748358371428,0.03669136,176.91,176.87,0.03767061]
[1748358372527,0.03669136,176.91,176.9,5.6506]
[1748358373433,0.03669136,176.91,176.89,5.6509]
[1748358374028,0.03669136,176.91,176.88,5.6512]
[1748358374228,0.03669136,176.91,176.87,0.03767061]
[1748358374830,0.03669136,176.91,176.88,31.64]
[1748358375324,5.6488,176.96,176.92,5.6499]
[1748358375933,5.6482,176.98,176.88,31.64]
[1748358376335,0.03958736,176.95,176.91,0.0363742]
[1748358376629,0.03958736,176.95,176.94,5.6494]
[1748358376835,0.03958736,176.95,176.92,2.0188]
[1748358377028,0.03958736,176.95,176.93,5.6496]
[1748358377229,0.03958736,176.95,176.92,2.0188]
[1748358377638,0.03958736,176.95,176.93,5.6497]
[1748358377831,0.03958736,176.95,176.92,2.0188]
[1748358378537,0.03958736,176.95,176.93,5.6495]
[1748358378741,0.03958736,176.95,176.92,2.0188]
[1748358378928,0.03958736,176.95,176.94,5.6494]
[1748358379135,0.03958736,176.95,176.92,2.0188]
[1748358379738,0.03958736,176.95,176.93,5.6494]
[1748358380036,0.03958736,176.95,176.92,2.0188]
[1748358380838,0.03958736,176.95,176.94,5.6494]
[1748358385837,0.03958736,176.95,176.91,0.0363742]
[1748358386235,5.6494,176.94,176.91,0.0363742]
[1748358386837,0.03958736,176.95,176.91,0.0363742]
[1748358387642,0.03958736,176.95,176.94,5.6494]
[1748358392547,519.72,177.09,176.94,31.48]
[1748358392753,5.8076,177.1,176.95,18.9248]
[1748358393049,31.48,177.13,177.05,5.6457]
[1748358393350,5.644,177.11,177.05,5.6457]
[1748358393548,0.04012041,177.1,177.06,5.6814261]
[1748358393950,5.68452041,177.1,177.06,0.0359261]
[1748358394150,0.04012041,177.1,177.06,0.0359261]
[1748358394644,0.04012041,177.1,177.07,5.6449]
[1748358394856,0.04012041,177.1,177.06,0.0359261]
[1748358395148,0.04012041,177.1,177.07,5.645]
[1748358395342,0.04012041,177.1,177.06,0.0359261]
[1748358395736,0.04012041,177.1,177.06,5.6813261]
[1748358395946,5.6446,177.09,177.06,5.6813261]
[1748358396147,5.6446,177.09,177.06,0.0359261]
[1748358396343,5.6446,177.09,177.06,5.6812261]
[1748358398448,5.645,177.08,177.06,0.0359261]
[1748358398641,31.48,177.08,176.98,31.48]
[1748358399442,5.6458,177.05,177.01,5.6471]
[1748358399745,0.03614088,177.05,177.01,5.6895513]
[1748358399941,0.03614088,177.05,177.01,0.0424513]
[1748358400154,0.03614088,177.05,176.94,31.48]
[1748358400349,16.35981394,177.07,176.94,31.48]
[1748358400543,16.35981394,177.07,176.97,5.6481]
[1748358400747,16.35981394,177.07,176.93,488.06]
[1748358401251,0.04284082,177.02,176.98,0.03917691]
[1748358401545,31.52284082,177.02,176.98,0.03917691]
[1748358401856,37.16984082,177.02,176.98,0.03917691]
[1748358402948,31.52284082,177.02,176.98,0.03917691]
[1748358403448,31.52284082,177.02,177.0,5.6473]
[1748358404854,31.52284082,177.02,176.98,0.03917691]
[1748358404855,37.16964082,177.02,176.99,5.6477]
[1748358405045,37.16964082,177.02,176.98,0.03917691]
[1748358405046,31.52284082,177.02,176.98,0.03917691]
[1748358405454,0.04284082,177.02,176.98,0.03917691]
[1748358406056,5.68984082,177.02,176.98,5.68717691]
[1748358406246,0.04284082,177.02,176.98,5.68717691]
[1748358407553,5.6473,177.01,176.98,5.68717691]
[1748358407853,0.04284082,177.02,176.98,5.68717691]
[1748358407854,0.04284082,177.02,176.98,0.03917691]
[1748358408154,5.6473,177.01,176.98,0.03917691]
[1748358408950,0.04284082,177.02,176.98,0.03917691]
[1748358409263,31.48,177.01,176.98,0.03917691]
[1748358409754,5.6475,177.0,176.98,0.03917691]
[1748358410256,31.48,177.01,176.98,0.03917691]
[1748358410456,37.1273,177.01,176.98,0.03917691]
[1748358410650,37.1273,177.01,176.98,5.68727691]
[1748358410846,31.48,177.01,176.98,5.68727691]
[1748358411251,31.48,177.01,176.98,0.03917691]
[1748358411756,31.48,177.01,176.89,33.4633]
[1748358411946,31.48,177.01,176.95,5.6489]
[1748358412349,5.6482,176.98,176.95,5.6489]
[1748358412857,5.68964678,176.98,176.95,5.68674034]
[1748358413352,0.04144678,176.98,176.96,5.6487]
[1748358414258,0.04144678,176.98,176.97,5.6484]
[1748358414455,0.04144678,176.98,176.95,0.03784034]
[1748358414759,0.04144678,176.98,176.96,5.6485]
[1748358415161,0.04144678,176.98,176.95,5.68674034]
[1748358415657,5.68964678,176.98,176.95,5.68674034]
[1748358416155,5.68964678,176.98,176.95,0.03784034]
[1748358416856,5.68964678,176.98,176.95,5.68664034]
[1748358417063,5.68964678,176.98,176.95,0.03784034]
[1748358417747,5.68964678,176.98,176.95,5.68684034]
[1748358418255,0.04144678,176.98,176.96,5.6486]
[1748358419154,0.04144678,176.98,176.97,5.6484]
[1748358419347,0.04144678,176.98,176.95,0.03784034]
[1748358419554,0.04144678,176.98,176.96,5.6487]
[1748358419758,0.04144678,176.98,176.95,0.03784034]
[1748358419958,5.6484,176.97,176.95,5.68674034]
[1748358420354,0.04144678,176.98,176.95,0.03784034]
[1748358420663,5.68974678,176.98,176.95,5.68674034]
[1748358420854,0.04144678,176.98,176.95,0.03784034]
[1748358421257,5.6486,176.97,176.95,0.03784034]
[1748358421456,0.04144678,176.98,176.95,0.03784034]
[1748358421852,5.6484,176.97,176.95,5.68664034]
[1748358422060,0.04144678,176.98,176.95,5.68664034]
[1748358422563,0.04144678,176.98,176.96,5.6487]
[1748358422953,0.04144678,176.98,176.97,5.6484]
[1748358425060,0.04144678,176.98,176.95,0.03784034]
[1748358425259,5.6487,176.96,176.95,0.03784034]
[1748358425957,0.04144678,176.98,176.97,5.6484]
[1748358426162,0.04144678,176.98,176.95,0.03784034]
[1748358426464,5.6486,176.97,176.95,0.03784034]
[1748358426865,0.04144678,176.98,176.95,0.03784034]
[1748358427160,5.6484,176.97,176.95,0.03784034]
[1748358427761,4.678e-05,176.98,176.95,0.03784034]
[1748358427961,41.2689218,177.22,176.97,10.01696529]
[1748358427962,1.9616,177.1,176.97,10.01696529]
[1748358428159,1.9616,177.1,176.98,152.2488]
[1748358428371,10.01696529,177.07,176.98,6.0888]
[1748358428560,31.46,177.06,176.98,6.0888]
[1748358428761,5.6468,177.03,176.99,5.6477]
[1748358428965,0.04002878,177.03,176.99,5.68436308]
[1748358429855,0.04002878,177.03,177.0,5.6472]
[1748358430569,0.04002878,177.03,176.99,0.03666308]
[1748358431267,0.04002878,177.03,177.02,5.6468]
[1748358433654,2.878e-05,177.03,177.02,5.6468]
[1748358438262,2.878e-05,177.03,177.02,120.2868]
[1748358439269,2.878e-05,177.03,177.02,125.9268]
[1748358439471,2.878e-05,177.03,177.02,120.2868]
[1748358441776,31.4,177.17,177.11,5.6437]
[1748358442074,31.4,177.17,177.08,31.4]
[1748358442673,31.4,177.17,177.0,8.82223216]